bitfinex/quotes_BTCUSD_20250131
["timestamp","ask_amount","ask_price","bid_price","bid_amount"]
[1738355866435,0.12511707,102040.0,102030.0,0.2248]
[1738355866606,0.12511707,102040.0,102030.0,0.2238]
[1738355866815,1.50345878,102050.0,102030.0,0.370815]
[1738355867017,1.50345878,102050.0,102030.0,0.2238]
[1738355867199,1.69945678,102050.0,102030.0,0.2238]
[1738355867398,0.147001,102040.0,102030.0,0.2238]
[1738355867812,1.50345878,102050.0,102030.0,0.370815]
[1738355867990,1.51145878,102050.0,102030.0,0.371815]
[1738355868191,1.51145878,102050.0,102030.0,0.2248]
[1738355868394,1.70745178,102050.0,102030.0,0.2238]
[1738355868602,1.70744778,102050.0,102030.0,0.2238]
[1738355868802,0.147001,102040.0,102030.0,0.2238]
[1738355869210,1.31746078,102050.0,102030.0,0.370812]
[1738355869409,1.31746078,102050.0,102030.0,0.2238]
[1738355869671,1.31746078,102050.0,102030.0,0.370813]
[1738355869885,0.97248178,102050.0,102030.0,0.66407616]
[1738355870098,0.97248178,102050.0,102030.0,0.86008516]
[1738355870313,1.11146978,102050.0,102030.0,0.66306516]
[1738355870509,1.11146978,102050.0,102030.0,0.66318726]
[1738355870714,0.00025642,102040.0,102030.0,0.46717826]
[1738355871126,0.00025642,102040.0,102030.0,0.61817826]
[1738355871935,0.00025642,102040.0,102030.0,0.61717826]
[1738355872394,0.00025642,102040.0,102030.0,0.62217826]
[1738355873643,0.00025642,102040.0,102030.0,0.61917826]
[1738355874005,0.00025642,102040.0,102030.0,0.62217826]
[1738355875593,0.00025642,102040.0,102030.0,0.64517826]
[1738355875804,0.00025642,102040.0,102030.0,0.94393963]
[1738355876210,0.00025642,102040.0,102030.0,0.65333265]
[1738355877286,0.00025642,102040.0,102030.0,0.95209402]
[1738355877844,0.0002562,102080.0,102070.0,0.146957]
[1738355878044,0.00039945,102080.0,102070.0,0.224757]
[1738355878246,0.00039945,102080.0,102070.0,0.274257]
[1738355878473,0.00039945,102080.0,102070.0,0.37150016]
[1738355879336,0.00039945,102080.0,102070.0,0.37250016]
[1738355879497,0.00039945,102080.0,102070.0,0.22554316]
[1738355880039,0.00039945,102080.0,102070.0,0.37250016]
[1738355882368,0.96488123,102080.0,102070.0,0.37250016]
[1738355883949,0.96488123,102080.0,102070.0,0.22554316]
[1738355884320,1.11182423,102080.0,102070.0,0.0505]
[1738355885248,0.96488123,102080.0,102070.0,0.0505]
[1738355885458,0.96488123,102080.0,102070.0,0.197457]
[1738355885696,0.96488123,102080.0,102070.0,0.29470016]
[1738355886114,0.96488123,102080.0,102070.0,0.302756]
[1738355886344,0.96488123,102080.0,102070.0,0.00905584]
[1738355887533,1.11182423,102080.0,102070.0,0.00905584]
[1738355888936,0.96488123,102080.0,102070.0,0.15601284]
[1738355889340,0.96488123,102080.0,102070.0,0.329756]
[1738355891134,0.96488123,102080.0,102070.0,0.328756]
[1738355891543,0.96488123,102080.0,102070.0,0.330756]
[1738355891747,0.96488123,102080.0,102070.0,0.254256]
[1738355892261,0.96488123,102080.0,102070.0,0.257256]
[1738355894046,0.96488123,102080.0,102070.0,0.27669167]
[1738355894486,0.00039945,102080.0,102070.0,0.62034526]
[1738355895014,0.0002562,102100.0,102090.0,0.146929]
[1738355895159,0.0002562,102100.0,102090.0,0.58880508]
[1738355895507,0.0002562,102100.0,102090.0,0.58782575]
[1738355896141,0.0002562,102100.0,102090.0,0.61082575]
[1738355896553,0.0002562,102100.0,102090.0,0.64425947]
[1738355896756,0.0002562,102100.0,102090.0,0.61382575]
[1738355896962,0.0002562,102100.0,102090.0,0.64425907]
[1738355897162,0.0002562,102110.0,102100.0,0.51356759]
[1738355897390,0.0002562,102110.0,102100.0,0.61081075]
[1738355897595,0.0002562,102110.0,102100.0,0.41715716]
[1738355898585,0.0002562,102110.0,102100.0,0.39615716]
[1738355898789,0.0002562,102110.0,102100.0,0.4531661]
[1738355898997,0.0002562,102110.0,102100.0,0.5338661]
[1738355899546,0.0002562,102110.0,102100.0,0.72751969]
[1738355899752,0.0002562,102110.0,102100.0,0.5568661]
[1738355900187,0.0002562,102110.0,102100.0,0.75051969]
[1738355900358,0.0002562,102110.0,102100.0,0.76844511]
[1738355900669,0.0002562,102110.0,102100.0,0.57879152]
[1738355901617,0.0002562,102110.0,102100.0,0.57679152]
[1738355901874,0.0002562,102110.0,102100.0,0.58379152]
[1738355902426,0.0002562,102110.0,102100.0,0.56079152]
[1738355903187,0.0002562,102110.0,102100.0,0.56895946]
[1738355905388,0.0002562,102110.0,102100.0,0.41895946]
[1738355906376,0.1471562,102110.0,102100.0,0.07417688]
[1738355906755,0.1471562,102110.0,102100.0,0.06686794]
[1738355907486,0.1471562,102110.0,102100.0,0.20978194]
[1738355907871,0.1471562,102110.0,102100.0,0.21278194]
[1738355908105,0.0002562,102110.0,102100.0,0.21278194]
[1738355908258,0.0002562,102110.0,102100.0,0.3830251]
[1738355908462,0.0002562,102110.0,102100.0,0.3880251]
[1738355909174,0.1471562,102110.0,102100.0,0.3880251]
[1738355909375,0.1471562,102110.0,102100.0,0.2411111]
[1738355909581,0.1471562,102110.0,102100.0,0.3880251]
[1738355909722,0.0002562,102110.0,102100.0,0.3880251]
[1738355910114,0.1471562,102110.0,102100.0,0.06386794]
[1738355910326,0.1471562,102110.0,102100.0,0.01616794]
[1738355910750,0.2236562,102110.0,102100.0,0.008]
[1738355910958,0.50190008,102110.0,102100.0,0.008]
[1738355911156,0.59948008,102110.0,102100.0,0.008]
[1738355911355,0.59948008,102110.0,102100.0,0.005]
[1738355911356,0.69683684,102110.0,102100.0,0.005]
[1738355911669,0.67683684,102110.0,102100.0,0.005]
[1738355911842,0.380014,102100.0,102090.0,0.000122]
[1738355912045,1.19449578,102100.0,102090.0,0.000122]
[1738355912288,1.11139578,102100.0,102090.0,0.000122]
[1738355912924,0.96448178,102100.0,102090.0,0.24429416]
[1738355913214,0.0002562,102110.0,102090.0,0.63607916]
[1738355913366,0.0002562,102110.0,102100.0,0.146914]
[1738355913575,0.1471562,102110.0,102100.0,0.146914]
[1738355913933,0.3510252,102110.0,102100.0,0.001]
[1738355914269,0.5389042,102110.0,102090.0,0.24429316]
[1738355914459,0.5389032,102110.0,102090.0,0.44019816]
[1738355914671,0.3430252,102110.0,102100.0,0.002]
[1738355914879,0.4213252,102110.0,102100.0,0.002]
[1738355915327,0.147914,102100.0,102090.0,0.000122]
[1738355915524,1.11139578,102100.0,102090.0,0.002122]
[1738355917189,1.11139578,102100.0,102090.0,0.004122]
[1738355918370,1.11139578,102100.0,102090.0,0.002122]
[1738355918612,1.11139578,102100.0,102090.0,0.004122]
[1738355918978,1.11139578,102100.0,102090.0,0.002122]
[1738355919329,1.11239578,102100.0,102090.0,0.002122]
[1738355919785,1.11239578,102100.0,102090.0,0.000122]
[1738355921409,1.5560957,102100.0,102090.0,0.000122]
[1738355921616,1.45873894,102100.0,102090.0,0.000122]
[1738355924075,1.50733894,102100.0,102090.0,0.000122]
[1738355924343,1.86495191,102100.0,102090.0,0.000122]
[1738355924951,1.86395191,102100.0,102090.0,0.000122]
[1738355925155,1.93630867,102100.0,102090.0,0.000122]
[1738355925358,1.94830867,102100.0,102090.0,0.001122]
[1738355926557,1.95650774,102100.0,102090.0,0.001122]
[1738355926963,1.96378774,102100.0,102090.0,0.001122]
[1738355927352,2.09378774,102100.0,102090.0,0.001122]
[1738355927557,0.146986,102050.0,102040.0,0.1260221]
[1738355927753,1.11146778,102050.0,102040.0,0.12616535]
[1738355928280,1.11146778,102050.0,102040.0,0.27316635]
[1738355928460,1.11146778,102050.0,102040.0,0.12616535]
[1738355929121,1.11146778,102050.0,102040.0,0.12816535]
[1738355929309,1.11146778,102050.0,102040.0,0.13016535]
[1738355930699,1.11146778,102050.0,102040.0,0.05036535]
[1738355930874,1.11146778,102050.0,102040.0,0.00426535]
[1738355931845,1.11146778,102050.0,102040.0,0.00026535]
[1738355932044,1.11246778,102050.0,102040.0,0.00326535]
[1738355932458,1.11246778,102050.0,102040.0,0.00770689]
[1738355934499,1.45065061,102050.0,102040.0,0.00770689]
[1738355934702,1.55986358,102050.0,102040.0,0.00126535]
[1738355935277,1.55986358,102050.0,102040.0,0.00776327]
[1738355935592,1.53085061,102050.0,102040.0,0.00776327]
[1738355936194,1.47019094,102050.0,102040.0,0.00776327]
[1738355937377,1.83780391,102050.0,102040.0,0.00776327]
[1738355937529,1.85780391,102050.0,102040.0,0.00126535]
[1738355937732,1.83780391,102050.0,102040.0,0.00126535]
[1738355937933,1.85780391,102050.0,102040.0,0.00126535]
[1738355938153,2.09216067,102050.0,102040.0,3.5e-07]
[1738355938344,2.64030529,102050.0,102040.0,3.5e-07]
[1738355939065,0.426401,102040.0,102030.0,0.1001221]
[1738355939321,0.52369206,102040.0,102030.0,0.1001221]
[1738355939502,0.55270503,102040.0,102030.0,0.1001221]
[1738355939715,0.75006179,102040.0,102030.0,0.1001221]
[1738355940177,0.61832882,102040.0,102030.0,0.1001221]
[1738355940585,0.62732882,102040.0,102030.0,0.1011221]
[1738355940739,0.62732882,102040.0,102030.0,0.10771224]
[1738355941758,0.67534179,102040.0,102030.0,0.1011221]
[1738355942374,0.67268641,102040.0,102030.0,0.0031121]
[1738355942573,0.72148641,102040.0,102030.0,0.0031121]
[1738355942905,0.72148641,102040.0,102030.0,1e-07]
[1738355943121,0.75001345,102040.0,102030.0,1e-07]
[1738355943333,0.3730991,102040.0,102030.0,1e-07]
[1738355943651,0.3531873,102040.0,102030.0,0.0001221]
[1738355943856,0.5261873,102040.0,102030.0,0.0001221]
[1738355944224,0.5031873,102040.0,102030.0,0.0001221]
[1738355944424,0.2781873,102040.0,102030.0,0.0001221]
[1738355944820,0.4281873,102040.0,102030.0,0.0001221]
[1738355945018,0.0180479,102040.0,102030.0,0.0001221]
[1738355945225,0.1560489,102040.0,102030.0,0.0001221]
[1738355945682,0.1650489,102040.0,102030.0,0.0011221]
[1738355946106,0.1560489,102040.0,102030.0,0.001122]
[1738355946351,0.40329206,102040.0,102030.0,0.001122]
[1738355946524,0.43529206,102040.0,102030.0,0.002122]
[1738355946724,0.42629206,102040.0,102030.0,0.001122]
[1738355947175,0.43529206,102040.0,102030.0,0.002122]
[1738355947386,0.42629206,102040.0,102030.0,0.001122]
[1738355947613,0.61864882,102040.0,102030.0,0.001122]
[1738355947817,0.62264882,102040.0,102030.0,0.001122]
[1738355948453,0.63264882,102040.0,102030.0,0.001122]
[1738355949684,0.65265484,102040.0,102030.0,0.001122]
[1738355950089,0.65265484,102040.0,101990.0,0.0001222]
[1738355950290,0.297116,101960.0,101950.0,0.0154406]
[1738355950445,1.4934777,101960.0,101950.0,0.0154406]
[1738355950643,1.4661977,101960.0,101950.0,0.0154406]
[1738355950851,1.4834777,101960.0,101950.0,0.0154406]
[1738355951054,1.4661977,101960.0,101950.0,0.0154406]
[1738355951257,1.4934777,101960.0,101950.0,0.0154406]
[1738355951574,1.5164777,101960.0,101950.0,0.01592091]
[1738355951957,1.5164777,101960.0,101950.0,9.1e-07]
[1738355952159,1.5254777,101960.0,101950.0,9.1e-07]
[1738355952658,0.01,101950.0,101940.0,2.1e-07]
[1738355952867,0.51049965,101950.0,101940.0,1e-07]
[1738355953128,0.53049965,101950.0,101940.0,1e-07]
[1738355953352,0.73107965,101950.0,101940.0,1e-07]
[1738355953716,0.320145,101940.0,101930.0,1e-07]
[1738355953916,1.48186994,101940.0,101930.0,4e-08]
[1738355954116,1.5792267,101940.0,101930.0,4e-08]
[1738355955487,1.53353049,101940.0,101930.0,4e-08]
[1738355955719,1.6065067,101940.0,101930.0,4e-08]
[1738355955838,1.62187264,101940.0,101930.0,4e-08]
[1738355956038,1.60459264,101940.0,101930.0,4e-08]
[1738355956247,1.54087264,101940.0,101930.0,4e-08]
[1738355956470,1.52087264,101940.0,101930.0,4e-08]
[1738355956890,1.51359264,101940.0,101930.0,4e-08]
[1738355957059,1.53359264,101940.0,101930.0,4e-08]
[1738355957254,1.54087264,101940.0,101930.0,4e-08]
[1738355957513,1.54787264,101940.0,101930.0,4e-08]
[1738355957902,1.53787264,101940.0,101930.0,4e-08]
[1738355958104,1.51787264,101940.0,101930.0,4e-08]
[1738355959366,1.60452651,101940.0,101930.0,4e-08]
[1738355960323,1.61452651,101940.0,101930.0,4e-08]
[1738355960572,1.63452651,101940.0,101930.0,4e-08]
[1738355960722,1.69192651,101940.0,101930.0,4e-08]
[1738355961329,1.71192651,101940.0,101930.0,4e-08]
[1738355961631,1.69192651,101940.0,101930.0,4e-08]
[1738355961829,1.62952651,101940.0,101930.0,4e-08]
[1738355962061,1.60952651,101940.0,101930.0,4e-08]
[1738355962307,1.62287264,101940.0,101930.0,4e-08]
[1738355962485,1.54875132,101940.0,101930.0,4e-08]
[1738355963467,1.54175132,101940.0,101930.0,4e-08]
[1738355963878,1.66305132,101940.0,101930.0,4e-08]
[1738355964080,1.57975132,101940.0,101930.0,4e-08]
[1738355964290,1.53387264,101940.0,101930.0,4e-08]
[1738355964843,1.55975132,101940.0,101930.0,4e-08]
[1738355965019,1.65975132,101940.0,101930.0,4e-08]
[1738355965426,1.74640519,101940.0,101930.0,4e-08]
[1738355966027,1.73740519,101940.0,101930.0,4e-08]
[1738355966230,0.01,101920.0,101880.0,0.11938204]
[1738355966434,0.25724316,101890.0,101880.0,0.00014371]
[1738355966758,1.37622194,101890.0,101880.0,0.00014371]
[1738355967395,1.39922194,101890.0,101880.0,0.00014371]
[1738355968020,1.40822194,101890.0,101880.0,0.00014371]
[1738355968854,1.4477966,101890.0,101880.0,0.00014371]
[1738355969046,1.53615336,101890.0,101880.0,0.00014371]
[1738355969482,1.54515336,101890.0,101880.0,0.00014371]
[1738355969685,1.53515336,101890.0,101880.0,0.00014371]
[1738355970479,1.3837086,101890.0,101880.0,0.00014371]
[1738355970883,1.4067086,101890.0,101880.0,0.00014371]
[1738355971034,1.21794194,101890.0,101880.0,0.00014371]
[1738355971234,1.22694194,101890.0,101880.0,0.00014371]
[1738355971626,1.37694194,101890.0,101880.0,0.00014371]
[1738355972076,1.36794194,101890.0,101880.0,0.00014371]
[1738355972200,1.20894194,101890.0,101880.0,0.00014371]
[1738355972411,1.12069878,101890.0,101880.0,0.00014371]
[1738355972632,1.11969878,101890.0,101880.0,0.00014371]
[1738355973175,1.12069878,101890.0,101880.0,0.00014371]
[1738355973356,1.12769878,101890.0,101880.0,0.00014371]
[1738355973943,1.12069878,101890.0,101880.0,0.00014371]
[1738355974143,1.11469878,101890.0,101880.0,0.00014371]
[1738355974708,1.12369878,101890.0,101880.0,0.00014371]
[1738355974921,1.11469878,101890.0,101880.0,0.00014371]
[1738355975298,1.12369878,101890.0,101880.0,0.00014371]
[1738355977412,0.97648178,101890.0,101880.0,0.00014371]
[1738355978430,0.96748178,101890.0,101880.0,0.00014371]
[1738355978768,0.96448178,101890.0,101880.0,0.00014371]
[1738355979107,0.343493,101900.0,101880.0,0.14737571]
[1738355979669,0.343493,101900.0,101880.0,0.00014371]
[1738355979670,0.539772,101900.0,101880.0,0.00014371]
[1738355979830,0.343493,101900.0,101880.0,0.00014371]
[1738355980262,0.539772,101900.0,101880.0,0.00014371]
[1738355980426,0.343493,101900.0,101880.0,0.14737571]
[1738355980626,1.30793878,101910.0,101890.0,0.147216]
[1738355980813,0.00025683,101890.0,101880.0,0.44091887]
[1738355981017,0.00025683,101890.0,101880.0,0.24461887]
[1738355981830,0.00025683,101890.0,101880.0,0.29201887]
[1738355982056,0.00025683,101890.0,101880.0,0.44201887]
[1738355982490,0.00025683,101890.0,101880.0,0.47343387]
[1738355982663,0.00025683,101890.0,101880.0,0.47243387]
[1738355982865,0.00025683,101890.0,101880.0,0.75261142]
[1738355983067,1.50410378,101930.0,101880.0,0.75261142]
[1738355983272,0.147176,101920.0,101900.0,0.343462]
[1738355983747,0.147176,101920.0,101910.0,0.075]
[1738355984500,0.156176,101920.0,101910.0,0.10551943]
[1738355984675,0.009,101920.0,101910.0,0.10551943]
[1738355985019,0.147174,101920.0,101910.0,0.10551943]
[1738355985427,0.160174,101920.0,101910.0,0.10551943]
[1738355985801,0.013,101920.0,101910.0,0.10551943]
[1738355986008,0.25341716,101920.0,101910.0,0.03051943]
[1738355986212,0.147203,101900.0,101890.0,0.07871943]
[1738355986379,1.11168478,101900.0,101890.0,0.0482]
[1738355986577,1.11168478,101900.0,101890.0,0.07873717]
[1738355987185,1.11168478,101900.0,101890.0,0.0482]
[1738355987607,1.11168478,101900.0,101890.0,0.0492]
[1738355991854,0.96448178,101900.0,101890.0,0.196417]
[1738355992058,1.11168478,101900.0,101890.0,0.07973619]
[1738355992509,1.11168478,101900.0,101890.0,0.0492]
[1738355992725,1.11168478,101900.0,101890.0,0.07973697]
[1738355993319,1.11168478,101900.0,101890.0,0.0492]
[1738355994168,1.11368478,101900.0,101890.0,0.0492]
[1738355995317,1.11168478,101900.0,101890.0,0.0492]
[1738355995747,1.11168478,101900.0,101890.0,0.0493222]
[1738355995955,0.9647384,101900.0,101890.0,0.0493222]
[1738355996534,0.9647384,101900.0,101890.0,0.1965392]
[1738355997945,0.9647384,101900.0,101890.0,0.3243061]
[1738355998352,0.9647384,101900.0,101890.0,0.29378236]
[1738355998724,0.9647384,101900.0,101890.0,0.05664924]
[1738355998951,1.1119414,101900.0,101890.0,0.00844924]
[1738355999934,1.1119414,101900.0,101890.0,0.00744924]
[1738355999935,1.1139414,101900.0,101890.0,0.00744924]
[1738356000213,1.1139414,101900.0,101890.0,0.0001222]
[1738356000429,0.9757384,101900.0,101890.0,0.0001222]
[1738356000631,1.1229414,101900.0,101890.0,0.0001222]
[1738356000970,1.24318456,101900.0,101890.0,0.0001222]
[1738356001568,1.1209414,101900.0,101890.0,0.0001222]
[1738356001772,0.9737384,101900.0,101890.0,0.1473392]
[1738356001979,0.9767384,101900.0,101890.0,0.0001222]
[1738356002219,1.1239414,101900.0,101890.0,0.0001222]
[1738356002536,0.9767384,101900.0,101890.0,0.0001222]
[1738356003287,0.9767384,101900.0,101890.0,0.00744924]
[1738356003849,1.1239414,101900.0,101890.0,0.00744924]
[1738356004457,1.49154132,101900.0,101890.0,0.00744924]
[1738356004664,1.56994132,101900.0,101890.0,0.0001222]
[1738356004866,1.66994132,101900.0,101890.0,0.0001222]
[1738356005068,1.56994132,101900.0,101890.0,0.0001222]
[1738356005281,1.57722132,101900.0,101890.0,0.0001222]
[1738356006008,1.57422132,101900.0,101890.0,0.0001222]
[1738356006145,1.58322132,101900.0,101890.0,0.0001222]
[1738356006380,1.47858456,101900.0,101890.0,0.0001222]
[1738356006578,1.46786456,101900.0,101890.0,0.0001222]
[1738356007089,1.48486456,101900.0,101890.0,0.0001222]
[1738356007947,1.33486456,101900.0,101890.0,0.0001222]
[1738356008149,0.9817384,101900.0,101890.0,0.0001222]
[1738356008918,0.9817384,101900.0,101890.0,0.1473392]
[1738356009299,0.9737384,101900.0,101890.0,0.0780222]
[1738356009507,0.9807384,101900.0,101890.0,0.0116022]
[1738356009730,1.1279414,101900.0,101890.0,0.0116022]
[1738356009929,0.9737384,101900.0,101890.0,0.1588192]
[1738356010194,0.9757384,101900.0,101890.0,0.1588192]
[1738356010409,1.1229414,101900.0,101890.0,0.0116022]
[1738356010599,1.1209414,101900.0,101890.0,0.0116022]
[1738356010798,0.9647384,101900.0,101890.0,0.1588192]
[1738356011034,0.9737384,101900.0,101890.0,0.33274371]
[1738356011240,0.00925662,101900.0,101890.0,0.33176236]
[1738356011446,0.00025662,101900.0,101890.0,0.48176236]
[1738356011840,0.00025662,101900.0,101890.0,0.48376236]
[1738356012018,0.00025662,101900.0,101890.0,0.4910894]
[1738356012775,0.14745962,101900.0,101890.0,0.08502704]
[1738356012976,0.14745962,101900.0,101890.0,0.00932704]
[1738356012977,1.1119414,101900.0,101890.0,0.00932704]
[1738356014599,1.1119414,101900.0,101890.0,0.00732704]
[1738356014801,1.23218456,101900.0,101890.0,0.00732704]
[1738356015006,1.47048456,101900.0,101890.0,0.00732704]
[1738356015233,0.320217,101890.0,101880.0,0.00014371]
[1738356015434,0.41746016,101890.0,101880.0,0.00014371]
[1738356016916,0.42646016,101890.0,101880.0,0.00014371]
[1738356017119,0.42946016,101890.0,101880.0,0.00014371]
[1738356017724,0.43619569,101890.0,101880.0,0.00014371]
[1738356018148,0.49545057,101890.0,101880.0,0.00014371]
[1738356018356,0.57765057,101890.0,101880.0,0.00014371]
[1738356019287,0.57465057,101890.0,101880.0,0.00014371]
[1738356019493,0.59002189,101890.0,101880.0,0.00014371]
[1738356019669,0.58802189,101890.0,101880.0,0.00014371]
[1738356020019,0.57265057,101890.0,101880.0,0.00014371]
[1738356020239,0.44019569,101890.0,101880.0,0.00014371]
[1738356020413,0.016,101890.0,101880.0,0.00014371]
[1738356020645,0.016,101890.0,101880.0,0.14737571]
[1738356021450,0.007,101890.0,101880.0,0.14737571]
[1738356021658,0.016,101890.0,101880.0,0.34755721]
[1738356021859,0.009,101890.0,101880.0,0.34657571]
[1738356022277,0.012,101890.0,101880.0,0.34657571]
[1738356022478,0.012,101890.0,101880.0,0.20390861]
[1738356022615,0.009,101890.0,101880.0,0.20390861]
[1738356022824,0.009,101890.0,101880.0,0.30115177]
[1738356023049,0.00025662,101900.0,101890.0,0.147217]
[1738356023264,0.00025662,101900.0,101890.0,0.24544143]
[1738356023464,0.00025662,101900.0,101890.0,0.32266016]
[1738356024641,0.00025662,101900.0,101890.0,0.32999306]
[1738356025190,0.00025662,101900.0,101890.0,0.47999306]
[1738356028004,0.00025662,101900.0,101890.0,0.499891]
[1738356028230,0.00025662,101900.0,101890.0,0.529891]
[1738356028437,0.00025662,101900.0,101890.0,0.7997791]
[1738356028564,0.00025662,101900.0,101890.0,0.575591]
[1738356028764,0.00125662,101900.0,101890.0,0.579591]
[1738356029210,0.00125662,101900.0,101890.0,0.61654002]
[1738356029446,0.00025662,101900.0,101890.0,0.5620129]
[1738356029648,0.00225662,101900.0,101890.0,0.5540129]
[1738356030059,0.00225662,101900.0,101890.0,0.4040129]
[1738356030267,0.14945962,101900.0,101890.0,0.21556939]
[1738356030473,0.00225662,101900.0,101890.0,0.21556939]
[1738356030675,0.14845962,101900.0,101890.0,0.21556939]
[1738356030811,0.00025662,101900.0,101890.0,0.21356939]
[1738356031215,0.00025662,101900.0,101890.0,0.21556939]
[1738356031583,0.00025662,101900.0,101890.0,0.46281255]
[1738356032188,0.00025662,101900.0,101890.0,0.45547965]
[1738356032393,0.00025662,101900.0,101890.0,0.35823649]
[1738356033542,0.00025662,101900.0,101890.0,0.3513389]
[1738356034555,0.9647384,101900.0,101890.0,0.3513389]
[1738356035385,0.00025662,101900.0,101890.0,0.44858206]
[1738356035613,0.00025662,101900.0,101890.0,0.52588206]
[1738356036365,0.00025662,101900.0,101890.0,0.52788206]
[1738356037621,1.1119414,101900.0,101890.0,0.0104219]
[1738356038197,1.1119414,101900.0,101890.0,0.1576389]
[1738356038410,1.1119414,101900.0,101890.0,0.0104219]
[1738356038411,1.20929816,101900.0,101890.0,0.0104219]
[1738356038600,1.1119414,101900.0,101890.0,0.0104219]
[1738356039313,1.23218456,101900.0,101890.0,0.0104219]
[1738356039545,1.31268456,101900.0,101890.0,0.0084219]
[1738356039993,1.32168456,101900.0,101890.0,0.0064219]
[1738356040436,0.147217,101890.0,101880.0,0.00026591]
[1738356040878,1.69425556,101900.0,101880.0,0.34380591]
[1738356041083,1.5165124,101900.0,101880.0,0.54010591]
[1738356041285,1.5165124,101900.0,101880.0,0.34379791]
[1738356041506,1.3202304,101900.0,101880.0,0.34379791]
[1738356041686,1.3172304,101900.0,101880.0,0.34379791]
[1738356041949,1.3172304,101900.0,101880.0,0.34479791]
[1738356042126,1.3082304,101900.0,101880.0,0.34479791]
[1738356042264,1.3082304,101900.0,101880.0,0.34579791]
[1738356042461,1.3082304,101900.0,101880.0,0.00126591]
[1738356042666,0.147217,101890.0,101880.0,0.00026591]
[1738356043300,0.26746016,101890.0,101880.0,0.00026591]
[1738356043521,0.35616559,101890.0,101880.0,0.00026591]
[1738356043722,0.26727904,101890.0,101880.0,0.00026591]
[1738356043944,0.26727904,101890.0,101880.0,0.00684446]
[1738356044239,0.15431588,101890.0,101880.0,0.00785073]
[1738356044444,1.5045174,101900.0,101880.0,0.54769773]
[1738356044652,0.14683335,101890.0,101880.0,0.15508273]
[1738356045038,1.5045144,101900.0,101880.0,0.15508273]
[1738356045211,1.5045144,101900.0,101880.0,0.00785073]
[1738356045440,1.1119544,101900.0,101880.0,0.35038873]
[1738356045662,0.9647384,101900.0,101890.0,0.147217]
[1738356045862,1.1199414,101900.0,101890.0,0.00654621]
[1738356046059,0.00825662,101900.0,101880.0,0.78629491]
[1738356046354,0.00825662,101900.0,101890.0,0.15376321]
[1738356046559,0.00825662,101900.0,101890.0,0.00654621]
[1738356046560,0.14945962,101900.0,101890.0,0.00654621]
[1738356046763,0.00225662,101900.0,101890.0,0.15376321]
[1738356046973,0.00225662,101900.0,101890.0,0.147217]
[1738356047325,0.00925662,101900.0,101890.0,0.147217]
[1738356047845,0.01225662,101900.0,101890.0,0.15375524]
[1738356048270,0.01225662,101900.0,101890.0,0.00653824]
[1738356048432,0.01225662,101900.0,101880.0,0.595665]
[1738356048633,0.0030835,101900.0,101880.0,0.791961]
[1738356048972,0.0080835,101900.0,101890.0,0.147217]
[1738356049173,0.0100835,101900.0,101890.0,0.147217]
[1738356049400,0.0100835,101900.0,101890.0,0.14819845]
[1738356049604,0.97256528,101900.0,101890.0,0.14819845]
[1738356049760,0.96456528,101900.0,101890.0,0.15375524]
[1738356050144,0.96456528,101900.0,101890.0,0.15475524]
[1738356050341,0.96456528,101900.0,101890.0,0.25297974]
[1738356050582,0.96456528,101900.0,101890.0,0.2519984]
[1738356050787,0.96456528,101900.0,101890.0,0.2529984]
[1738356051064,8.35e-05,101900.0,101890.0,0.2603361]
[1738356051563,8.35e-05,101900.0,101890.0,0.25843219]
[1738356051680,8.35e-05,101900.0,101890.0,0.26074935]
[1738356051890,0.96456528,101900.0,101890.0,0.28010361]
[1738356052500,0.96456528,101900.0,101890.0,0.03572414]
[1738356052707,0.96456528,101900.0,101890.0,0.18294114]
[1738356052970,0.96456528,101900.0,101890.0,0.18306334]
[1738356053903,0.96456528,101900.0,101890.0,0.2803065]
[1738356054107,0.96456528,101900.0,101890.0,0.4303065]
[1738356054108,8.35e-05,101900.0,101890.0,0.4303065]
[1738356054505,8.35e-05,101900.0,101890.0,0.55990242]
[1738356054636,8.35e-05,101900.0,101890.0,0.4303065]
[1738356054837,8.35e-05,101900.0,101890.0,0.46087828]
[1738356055328,8.35e-05,101900.0,101890.0,0.4303065]
[1738356055955,8.35e-05,101900.0,101890.0,0.4293065]
[1738356056093,8.35e-05,101900.0,101890.0,0.4283065]
[1738356056339,0.0010835,101900.0,101890.0,0.4323065]
[1738356057261,0.0010835,101900.0,101890.0,0.56190242]
[1738356057463,5e-07,101900.0,101890.0,0.71340242]
[1738356057591,5e-07,101900.0,101890.0,0.76697501]
[1738356057794,5e-07,101900.0,101890.0,0.76483803]
[1738356058021,5e-07,101900.0,101890.0,0.80410803]
[1738356058603,5e-07,101900.0,101890.0,0.80310803]
[1738356058917,5e-07,101900.0,101890.0,0.80610803]
[1738356059101,0.00025662,101940.0,101930.0,0.147159]
[1738356060293,0.00030449,101940.0,101930.0,0.147159]
[1738356060488,0.01330449,101940.0,101930.0,0.148159]
[1738356060967,0.16044949,101940.0,101930.0,0.148159]
[1738356061384,0.01330449,101940.0,101930.0,0.15287688]
[1738356062273,0.16044949,101940.0,101930.0,0.00571788]
[1738356062505,0.97778627,101940.0,101930.0,0.15287688]
[1738356062710,0.01330449,101940.0,101930.0,0.39540216]
[1738356063655,0.00930449,101940.0,101930.0,0.39540216]
[1738356063863,0.00930449,101940.0,101930.0,0.39494316]
[1738356064278,0.15644949,101940.0,101930.0,0.00786508]
[1738356064481,0.15644949,101940.0,101930.0,0.15502408]
[1738356064685,0.00930449,101940.0,101930.0,0.00786508]
[1738356065093,0.14744949,101940.0,101930.0,0.00732408]
[1738356065294,0.14744949,101940.0,101930.0,0.15648308]
[1738356065295,0.00030449,101940.0,101930.0,0.15648308]
[1738356065701,0.00030449,101940.0,101930.0,0.25670724]
[1738356065905,0.00030449,101940.0,101930.0,0.45482624]
[1738356066867,0.00030449,101940.0,101930.0,0.44750216]
[1738356068202,0.00030449,101940.0,101930.0,0.64173024]
[1738356068595,0.00030449,101940.0,101930.0,0.72863024]
[1738356068802,0.00030449,101940.0,101930.0,0.74863024]
[1738356069219,0.00030449,101940.0,101930.0,0.73869093]
[1738356069429,0.00030449,101940.0,101930.0,0.54446285]
[1738356069854,0.00030449,101940.0,101930.0,0.73869093]
[1738356070059,0.00030449,101940.0,101930.0,0.5517716]
[1738356070261,0.00030449,101940.0,101930.0,0.5297716]
[1738356070469,0.00130449,101940.0,101930.0,0.5357716]
[1738356071097,0.00130449,101940.0,101930.0,0.73999968]
[1738356071225,0.00130449,101940.0,101930.0,0.75999968]
[1738356071432,0.00274449,101940.0,101930.0,0.75999968]
[1738356072286,0.00274449,101940.0,101930.0,0.75799968]
[1738356072625,0.00274449,101940.0,101930.0,0.78099968]
[1738356074536,0.00274449,101940.0,101930.0,0.78399968]
[1738356075737,0.00274449,101940.0,101930.0,0.73099968]
[1738356075976,0.00274449,101940.0,101930.0,0.5667716]
[1738356076165,0.00274449,101940.0,101930.0,0.5467716]